bitfinex/quotes_BTCUSD_20240730
["timestamp","ask_amount","ask_price","bid_price","bid_amount"]
[1722356868357,0.00083,66417.0,66416.0,0.90709272]
[1722356868585,0.00083,66417.0,66416.0,0.60596072]
[1722356868793,0.00083,66417.0,66416.0,0.90709272]
[1722356869867,0.00083,66417.0,66416.0,0.89309272]
[1722356870275,0.00083,66417.0,66416.0,0.90709272]
[1722356870695,0.00083,66417.0,66416.0,0.89309272]
[1722356871240,0.00083,66417.0,66416.0,0.90709272]
[1722356871674,0.13953,66417.0,66416.0,0.02406272]
[1722356871872,0.13953,66417.0,66416.0,0.05426272]
[1722356872058,0.290093,66417.0,66416.0,0.014]
[1722356872468,0.59122,66417.0,66416.0,0.014]
[1722356874125,0.150566,66416.0,66407.0,0.180786]
[1722356874279,0.07534716,66411.0,66407.0,0.180786]
[1722356874478,0.07534716,66411.0,66409.0,0.0302]
[1722356874937,0.07534716,66411.0,66410.0,0.04275347]
[1722356875483,0.290094,66417.0,66416.0,0.006]
[1722356875693,0.290093,66417.0,66416.0,0.006]
[1722356876714,0.13953,66417.0,66416.0,0.006]
[1722356877337,0.13953,66417.0,66412.0,0.0302]
[1722356877577,0.13953,66417.0,66416.0,0.01251429]
[1722356877783,0.13953,66417.0,66412.0,0.0302]
[1722356877951,0.13953,66417.0,66414.0,0.15057]
[1722356878198,0.00083,66417.0,66416.0,0.451698]
[1722356878405,0.00083,66417.0,66416.0,0.75283]
[1722356878531,0.00083,66417.0,66416.0,1.053962]
[1722356878740,0.00083,66417.0,66416.0,1.06647629]
[1722356878963,0.00083,66417.0,66416.0,1.09667629]
[1722356880028,0.00083,66417.0,66416.0,0.79554429]
[1722356880233,0.00083,66417.0,66416.0,0.19328029]
[1722356880437,0.06643,66417.0,66416.0,0.19328029]
[1722356881284,0.06643,66417.0,66416.0,0.49441229]
[1722356881490,0.00083,66417.0,66416.0,0.79554429]
[1722356884513,0.00083,66417.0,66416.0,0.80754429]
[1722356885334,0.00083,66417.0,66416.0,0.79554429]
[1722356888076,0.00083,66417.0,66416.0,0.80954429]
[1722356889864,0.00083,66417.0,66416.0,1.11067629]
[1722356891567,0.00083,66417.0,66416.0,0.80954429]
[1722356891743,0.00083,66417.0,66416.0,1.11067629]
[1722356894353,0.00083,66417.0,66416.0,0.80954429]
[1722356894647,0.13963,66417.0,66416.0,0.20728029]
[1722356894852,0.290193,66417.0,66416.0,0.05671429]
[1722356895044,0.13963,66417.0,66416.0,0.05671429]
[1722356896684,0.290193,66417.0,66416.0,0.05671429]
[1722356896956,0.16320862,66417.0,66416.0,0.05671429]
[1722356897153,0.13963,66417.0,66416.0,0.05671429]
[1722356897354,0.892447,66417.0,66416.0,0.05671429]
[1722356897576,0.892447,66417.0,66416.0,0.0442]
[1722356898234,0.91602569,66417.0,66416.0,0.0442]
[1722356899536,0.61489869,66417.0,66416.0,0.0442]
[1722356899785,0.150568,66415.0,66412.0,0.0302]
[1722356900093,0.150571,66414.0,66412.0,0.0302]
[1722356900274,0.00033956,66413.0,66412.0,0.0302]
[1722356900505,0.150571,66414.0,66412.0,0.0302]
[1722356900747,0.150571,66414.0,66410.0,0.0302]
[1722356900997,0.451731,66411.0,66410.0,0.0302]
[1722356901229,0.150582,66409.0,66404.0,0.150592]
[1722356901455,0.16518024,66411.0,66404.0,0.150592]
[1722356901456,0.292178,66411.0,66407.0,0.0302]
[1722356901692,0.00044329,66410.0,66401.0,0.41626793]
[1722356901947,0.00044329,66410.0,66409.0,0.451744]
[1722356902193,0.1416,66411.0,66410.0,0.0302]
[1722356902644,0.1416,66411.0,66409.0,0.0302]
[1722356902894,0.301142,66414.0,66409.0,0.481944]
[1722356902895,0.000907,66410.0,66409.0,0.481944]
[1722356903126,0.1462,66414.0,66412.0,0.180775]
[1722356903127,0.000907,66413.0,66412.0,0.180775]
[1722356903349,0.0244864,66413.0,66412.0,0.180775]
[1722356903552,0.0244864,66413.0,66412.0,0.0302]
[1722356903753,0.09983356,66413.0,66412.0,0.180775]
[1722356903961,0.09892656,66413.0,66412.0,0.0302]
[1722356904222,0.55064356,66413.0,66412.0,0.0302]
[1722356904484,0.24949856,66413.0,66412.0,0.0302]
[1722356904680,0.25040556,66413.0,66412.0,0.0302]
[1722356904886,0.24949856,66413.0,66412.0,0.0302]
[1722356905211,0.24949856,66413.0,66408.0,0.150582]
[1722356905212,0.150575,66412.0,66409.0,0.0302]
[1722356905420,0.0235794,66413.0,66412.0,0.783075]
[1722356905627,0.00083,66417.0,66416.0,0.78303]
[1722356905834,0.00083,66417.0,66416.0,1.47501193]
[1722356906006,0.00083,66417.0,66416.0,1.77614393]
[1722356907646,0.00083,66417.0,66416.0,1.47501193]
[1722356908658,0.00083,66417.0,66416.0,1.47500106]
[1722356909858,0.00083,66417.0,66416.0,1.02323602]
[1722356910061,0.00083,66417.0,66416.0,0.89809993]
[1722356910906,0.00083,66417.0,66416.0,0.88303]
[1722356911283,0.00083,66417.0,66416.0,0.89703]
[1722356911592,0.00083,66417.0,66416.0,1.198162]
[1722356913084,0.00083,66417.0,66416.0,1.20882407]
[1722356913448,0.00083,66417.0,66416.0,0.90769207]
[1722356913876,0.00083,66417.0,66416.0,1.20882407]
[1722356914077,0.00083,66417.0,66416.0,1.35945711]
[1722356914217,0.00083,66417.0,66416.0,1.64029689]
[1722356914409,0.00083,66417.0,66416.0,2.03142889]
[1722356914619,0.00083,66417.0,66416.0,2.05442889]
[1722356915416,0.00083,66417.0,66416.0,2.0314207]
[1722356915601,0.00083,66417.0,66416.0,2.0174207]
[1722356916060,0.00083,66417.0,66416.0,2.0314207]
[1722356916259,0.00083,66417.0,66416.0,1.9174207]
[1722356917317,0.00083,66417.0,66416.0,1.6162887]
[1722356917523,0.00083,66417.0,66416.0,0.59256007]
[1722356917736,0.00083,66417.0,66416.0,0.19142807]
[1722356917950,0.00083,66417.0,66416.0,0.05486207]
[1722356918459,0.00083,66417.0,66416.0,0.04086207]
[1722356919027,0.00083,66417.0,66416.0,0.05486207]
[1722356919439,0.45252,66417.0,66416.0,0.05486207]
[1722356919678,0.45252,66417.0,66416.0,0.0302]
[1722356919911,0.150569,66415.0,66411.0,0.0302]
[1722356920057,0.22591616,66415.0,66411.0,0.0302]
[1722356920432,0.00083,66417.0,66411.0,0.0302]
[1722356920626,0.151395,66417.0,66413.0,0.0302]
[1722356920826,0.150566,66416.0,66413.0,0.0302]
[1722356921431,0.00083,66417.0,66413.0,0.0302]
[1722356921631,0.151394,66417.0,66413.0,0.0302]
[1722356922124,0.151394,66417.0,66416.0,0.0442]
[1722356922810,0.151394,66417.0,66416.0,0.0302]
[1722356922987,0.151394,66417.0,66413.0,0.0302]
[1722356923239,0.151394,66417.0,66413.0,0.0432]
[1722356923532,0.15107225,66416.0,66413.0,0.0432]
[1722356923688,0.00083,66417.0,66415.0,0.0302]
[1722356923888,0.000907,66416.0,66415.0,0.180767]
[1722356924117,0.00083,66417.0,66415.0,0.180767]
[1722356924432,0.00083,66417.0,66416.0,0.180766]
[1722356924590,0.00083,66417.0,66416.0,0.481898]
[1722356925662,0.00083,66417.0,66416.0,0.78303]
[1722356927328,0.00083,66417.0,66416.0,0.481898]
[1722356927533,0.00083,66417.0,66416.0,0.495898]
[1722356927926,0.00083,66417.0,66416.0,0.0442]
[1722356928139,0.59862,66417.0,66416.0,0.0442]
[1722356929732,0.59862,66417.0,66416.0,0.014]
[1722356930715,0.150567,66416.0,66412.0,0.13019]
[1722356931114,0.448057,66417.0,66412.0,0.13019]
[1722356931319,0.150567,66416.0,66412.0,0.13019]
[1722356931722,0.14693,66417.0,66410.0,0.03019]
[1722356931943,0.150573,66413.0,66410.0,0.03019]
[1722356932119,0.07534716,66412.0,66410.0,0.03019]
[1722356932289,0.150573,66413.0,66410.0,0.03019]
[1722356932735,0.000907,66412.0,66410.0,0.03019]
[1722356932943,0.150571,66414.0,66410.0,0.03019]
[1722356933146,0.150571,66414.0,66411.0,0.03019]
[1722356933342,0.07534716,66413.0,66411.0,0.03019]
[1722356934107,0.07534716,66413.0,66410.0,0.03019]
[1722356934309,0.150576,66412.0,66410.0,0.03019]
[1722356934514,0.451731,66411.0,66410.0,0.03019]
[1722356934733,0.896085,66411.0,66410.0,0.03019]
[1722356935186,0.896085,66411.0,66406.0,0.01506993]
[1722356935187,0.1432,66411.0,66407.0,0.03019]
[1722356935391,0.1356,66416.0,66410.0,0.09079]
[1722356935593,0.000907,66415.0,66414.0,0.451711]
[1722356935791,0.000907,66416.0,66415.0,0.150568]
[1722356935999,0.000907,66416.0,66415.0,0.03019]
[1722356936605,0.00083,66417.0,66415.0,0.03019]
[1722356936806,0.000907,66416.0,66415.0,0.03019]
[1722356937235,0.00083,66417.0,66415.0,0.03019]
[1722356937457,0.00083,66417.0,66416.0,0.03019]
[1722356937928,0.00083,66417.0,66414.0,0.03019]
[1722356938135,0.00083,66417.0,66414.0,0.04319]
[1722356938354,0.00083,66417.0,66414.0,0.03019]
[1722356938586,0.07625416,66416.0,66414.0,0.03019]
[1722356939427,0.22591316,66416.0,66414.0,0.04319]
[1722356939647,0.145807,66415.0,66414.0,0.04319]
[1722356939862,0.1449,66415.0,66414.0,0.04319]
[1722356940081,0.14425443,66415.0,66414.0,0.04319]
[1722356940505,0.14516143,66415.0,66414.0,0.04319]
[1722356940741,0.29572943,66415.0,66414.0,0.04319]
[1722356940937,0.59595843,66415.0,66414.0,0.04319]
[1722356941173,0.150571,66414.0,66410.0,0.03019]
[1722356941379,0.150573,66413.0,66410.0,0.03019]
[1722356941582,0.301148,66413.0,66410.0,0.03019]
[1722356941887,0.150577,66411.0,66410.0,0.03019]
[1722356942137,0.230977,66411.0,66410.0,0.03019]
[1722356942377,0.230977,66411.0,66407.0,0.180774]
[1722356942595,0.0804,66411.0,66407.0,0.180774]
[1722356942821,0.230977,66411.0,66410.0,0.011]
[1722356943168,0.595631,66411.0,66410.0,0.011]
[1722356943376,0.294477,66411.0,66410.0,0.011]
[1722356943598,0.595631,66411.0,66410.0,0.011]
[1722356944323,0.294477,66411.0,66410.0,0.011]
[1722356945112,0.294477,66411.0,66407.0,0.03019]
[1722356945314,0.294477,66411.0,66407.0,0.180775]
[1722356945515,0.1439,66411.0,66407.0,0.180775]
[1722356945695,0.294477,66411.0,66410.0,0.013]
[1722356946285,0.294477,66411.0,66407.0,0.03019]
[1722356946481,0.445055,66411.0,66407.0,0.03019]
[1722356946689,0.294478,66411.0,66407.0,0.03019]
[1722356947101,0.1439,66411.0,66408.0,0.150583]
[1722356947304,0.1439,66411.0,66408.0,0.03019]
[1722356947506,0.294478,66411.0,66408.0,0.03019]
[1722356948266,0.445054,66411.0,66408.0,0.03019]
[1722356948416,0.150579,66410.0,66407.0,0.03019]
[1722356948617,0.1439,66411.0,66407.0,0.03019]
[1722356948842,0.294477,66411.0,66407.0,0.180776]
[1722356949048,0.445055,66411.0,66407.0,0.03019]
[1722356949310,0.445055,66411.0,66402.0,0.031103]
[1722356949311,0.37651516,66408.0,66402.0,0.031103]
[1722356949520,0.150587,66407.0,66403.0,0.180784]
[1722356949690,0.150587,66407.0,66403.0,0.03019]
[1722356949950,0.150587,66407.0,66403.0,0.180785]
[1722356950194,0.150589,66406.0,66403.0,0.03019]
[1722356950535,0.301173,66407.0,66403.0,0.03019]
[1722356950958,0.301166,66409.0,66403.0,0.180784]
[1722356951342,0.0637,66416.0,66407.0,0.479663]
[1722356951512,0.02357977,66415.0,66411.0,0.150576]
[1722356951716,0.02357977,66415.0,66407.0,0.17849]
[1722356951891,0.17414777,66415.0,66411.0,0.150575]
[1722356952067,0.02357977,66414.0,66412.0,0.150574]
[1722356952272,0.02357977,66413.0,66410.0,0.150578]
[1722356952694,0.17415277,66413.0,66409.0,0.150581]
[1722356952913,0.02357977,66412.0,66409.0,0.15058]
[1722356953291,0.02357977,66412.0,66409.0,0.150581]
[1722356953512,0.02357977,66412.0,66408.0,0.301168]
[1722356953808,0.02357977,66412.0,66411.0,0.481921]
[1722356953974,0.02357977,66412.0,66411.0,0.331344]
[1722356954150,0.13904716,66416.0,66412.0,0.150574]
[1722356954151,0.02357977,66415.0,66412.0,0.150574]
[1722356955158,0.02357977,66415.0,66411.0,0.180765]
[1722356955364,0.02357977,66415.0,66412.0,0.150574]
[1722356956094,0.02357977,66415.0,66414.0,0.752852]
[1722356956300,0.02357977,66416.0,66415.0,0.451704]
[1722356956496,0.00083,66417.0,66416.0,0.150566]
[1722356957094,0.02440779,66417.0,66416.0,0.451698]
[1722356957307,0.02440779,66417.0,66416.0,0.150566]
[1722356957957,0.02440779,66417.0,66415.0,0.150566]
[1722356958137,0.02357779,66416.0,66415.0,0.451702]
[1722356958335,0.00083,66417.0,66415.0,0.301136]
[1722356958656,0.02357795,66416.0,66415.0,0.451704]
[1722356958854,0.02357795,66416.0,66415.0,0.150568]
[1722356959615,0.02357795,66416.0,66413.0,0.301143]
[1722356959826,0.07534716,66414.0,66413.0,0.150572]
[1722356960022,0.09892511,66414.0,66413.0,0.451717]
[1722356960530,0.09892511,66414.0,66413.0,0.150572]
[1722356960736,0.09892511,66414.0,66411.0,0.180766]
[1722356960938,0.09892511,66414.0,66411.0,0.03019]
[1722356960939,0.0648,66412.0,66411.0,0.03019]
[1722356961135,0.08837795,66412.0,66411.0,0.03019]
[1722356961805,0.08837795,66412.0,66411.0,0.180767]
[1722356961996,0.08837795,66412.0,66411.0,0.03019]
[1722356962825,0.23895295,66412.0,66411.0,0.03019]
[1722356962977,0.54010295,66412.0,66411.0,0.03019]
[1722356963156,0.63040981,66412.0,66411.0,0.03019]
[1722356963503,0.54010295,66412.0,66411.0,0.03019]
[1722356963984,0.54010295,66412.0,66411.0,0.013]
[1722356964592,0.150579,66411.0,66407.0,0.180776]
[1722356964804,0.32473795,66410.0,66407.0,0.03019]
[1722356964981,0.02357795,66409.0,66406.0,0.03019]
[1722356965179,0.17416095,66409.0,66406.0,0.03019]
[1722356965411,0.02357795,66408.0,66406.0,0.180778]
[1722356965616,0.02357795,66409.0,66406.0,0.180778]
[1722356965822,0.02357795,66408.0,66406.0,0.180778]
[1722356966036,0.02357795,66409.0,66407.0,0.180776]
[1722356966239,0.02358072,66408.0,66407.0,0.03019]
[1722356966443,0.02358072,66409.0,66407.0,0.180775]
[1722356966649,0.02358072,66408.0,66407.0,0.180775]
[1722356966805,0.09040649,66410.0,66407.0,0.180775]
[1722356966806,0.02358072,66409.0,66407.0,0.180775]
[1722356967208,0.0006513,66408.0,66407.0,0.180775]
[1722356967434,0.02358072,66408.0,66407.0,0.180775]
[1722356967637,0.09040481,66410.0,66407.0,0.04319]
[1722356967638,0.02358072,66409.0,66407.0,0.04319]
[1722356967788,0.02358072,66408.0,66407.0,0.04319]
[1722356967991,0.02358072,66408.0,66407.0,0.03019]
[1722356968528,0.02358072,66408.0,66407.0,0.04419]
[1722356968729,0.02358072,66409.0,66407.0,0.194776]
[1722356969303,0.02358072,66409.0,66407.0,0.04419]
[1722356969944,0.02358072,66409.0,66408.0,0.180774]
[1722356970114,0.02358072,66409.0,66408.0,0.323574]
[1722356970310,0.02358072,66409.0,66408.0,0.92591]
[1722356970539,0.02358072,66412.0,66411.0,0.752885]
[1722356970892,0.00083,66417.0,66409.0,0.064]
[1722356970893,0.00083,66417.0,66416.0,0.150566]
[1722356971071,0.02440778,66417.0,66416.0,0.150566]
[1722356971614,0.02440778,66417.0,66416.0,0.89083]
[1722356972020,0.02440778,66417.0,66416.0,1.191962]
[1722356972021,0.00083,66417.0,66416.0,1.191962]
[1722356972364,0.00083,66417.0,66416.0,1.31710977]
[1722356972582,0.00083,66417.0,66416.0,1.191962]
[1722356973016,0.00083,66417.0,66416.0,1.79906149]
[1722356973386,0.00083,66417.0,66416.0,1.89906149]
[1722356973593,0.00083,66417.0,66416.0,1.89904418]
[1722356974637,0.00083,66417.0,66416.0,1.90304418]
[1722356975068,0.00083,66417.0,66416.0,1.89904418]
[1722356975510,0.00083,66417.0,66416.0,2.22617618]
[1722356975715,0.00083,66417.0,66416.0,2.50940141]
[1722356975977,0.00083,66417.0,66416.0,2.81053341]
[1722356976230,0.00083,66417.0,66416.0,2.75799162]
[1722356976636,0.00083,66417.0,66416.0,2.81050134]
[1722356977633,0.00083,66417.0,66416.0,2.57030818]
[1722356981566,0.00083,66417.0,66416.0,2.24717618]
[1722356981763,0.00083,66417.0,66416.0,1.93604418]
[1722356981967,0.00083,66417.0,66416.0,1.96276519]
[1722356982167,0.00083,66417.0,66416.0,1.91304418]
[1722356982375,0.00083,66417.0,66416.0,1.78791704]
[1722356985018,0.00083,66417.0,66416.0,1.91304945]
[1722356985562,0.00083,66417.0,66416.0,2.22618145]
[1722356985761,0.00083,66417.0,66416.0,2.24918145]
[1722356985938,0.00083,66417.0,66416.0,2.26918145]
[1722356986705,0.00083,66417.0,66416.0,2.26916132]
[1722356987384,0.00083,66417.0,66416.0,2.24716132]
[1722356987600,0.00083,66417.0,66416.0,1.91302932]
[1722356988827,0.00083,66417.0,66416.0,2.22416132]
[1722356988988,0.00083,66417.0,66416.0,2.24716132]
[1722356989195,0.00083,66417.0,66416.0,2.24916132]
[1722356990059,0.00083,66417.0,66416.0,2.24916946]
[1722356992006,0.00083,66417.0,66416.0,2.57030146]
[1722356992209,0.0001828,66418.0,66416.0,2.57030146]
[1722356992210,0.0001828,66418.0,66417.0,1.417261]
[1722356992541,0.0001828,66418.0,66417.0,2.27171139]
[1722356992746,0.0001828,66418.0,66417.0,2.2711291]
[1722356993318,0.0001828,66418.0,66417.0,2.14600868]
[1722356993667,0.0001828,66418.0,66417.0,2.27111782]
[1722356994271,0.00083,66430.0,66429.0,1.686091]
[1722356994470,0.00083,66430.0,66429.0,1.95179397]
[1722356994676,0.00083,66430.0,66429.0,2.08890061]
[1722356994882,0.00083,66430.0,66429.0,2.67299132]
[1722356996550,0.00083,66430.0,66429.0,2.54788468]
[1722356996721,0.00083,66430.0,66429.0,2.67297159]
[1722356997020,0.00083,66430.0,66429.0,2.7366926]
[1722356997221,0.00083,66430.0,66429.0,2.68697159]
[1722356997447,0.00083,66430.0,66429.0,2.65555388]
[1722356997580,0.00083,66430.0,66429.0,2.40420189]
[1722356997784,0.00083,66430.0,66429.0,2.35448088]
[1722356998209,0.00083,66430.0,66429.0,2.37560583]
[1722356999595,0.00083,66430.0,66429.0,2.3605359]
[1722357000194,0.00083,66430.0,66429.0,2.0474629]
[1722357000516,0.00083,66430.0,66429.0,1.7838629]
[1722357000945,0.08253,66430.0,66429.0,1.7838629]
[1722357001503,0.00083,66430.0,66429.0,1.7838629]
[1722357002988,0.00083,66430.0,66429.0,1.78388114]
[1722357003442,0.00083,66430.0,66429.0,1.48280814]
[1722357004064,0.00141229,66430.0,66429.0,1.48280814]
[1722357004469,0.00083,66430.0,66429.0,1.48280814]
[1722357006173,0.00083,66430.0,66429.0,1.4828131]
[1722357008135,0.00083,66430.0,66429.0,1.4688131]
[1722357008341,0.14311229,66430.0,66429.0,1.4688131]
[1722357008524,0.14311229,66430.0,66429.0,1.45968815]
[1722357008723,0.14311229,66430.0,66429.0,1.17061515]
[1722357009224,0.15003,66430.0,66429.0,1.17061515]
[1722357009360,0.15061229,66430.0,66429.0,1.47168815]
[1722357009562,0.15061229,66430.0,66429.0,1.17061515]
[1722357011717,0.1445,66424.0,66423.0,0.87788418]
[1722357011919,0.0629,66428.0,66427.0,0.150541]
[1722357012092,0.00833,66430.0,66429.0,1.053755]
[1722357012297,0.00833,66430.0,66429.0,1.17889018]
[1722357012518,0.00833,66430.0,66429.0,0.87779958]
[1722357012519,0.00891229,66430.0,66429.0,0.87779958]
[1722357014453,0.00833,66430.0,66429.0,0.88179958]
[1722357014690,0.00891229,66430.0,66429.0,0.88179958]
[1722357014896,0.00891229,66430.0,66429.0,0.58072658]
[1722357015100,0.00891229,66430.0,66429.0,0.455609]
[1722357015276,0.00891229,66430.0,66429.0,0.88180594]
[1722357015481,0.00891229,66430.0,66429.0,0.58073294]
[1722357015482,0.15151229,66430.0,66429.0,0.58073294]
[1722357015852,0.15151229,66430.0,66429.0,0.88180589]
[1722357016490,0.15151229,66430.0,66429.0,0.58073289]
[1722357016687,0.15151229,66430.0,66429.0,0.88180589]
[1722357017504,0.15151229,66430.0,66429.0,0.58073289]
[1722357017682,0.15151229,66430.0,66429.0,0.88180589]
[1722357018293,0.15151229,66430.0,66429.0,0.58073289]
[1722357019113,0.15151229,66430.0,66429.0,0.58073213]
[1722357020509,0.15151229,66430.0,66429.0,0.455609]
[1722357020730,0.15151229,66430.0,66429.0,0.154536]
[1722357020933,0.15151229,66430.0,66429.0,0.004]
[1722357020934,0.30204629,66430.0,66429.0,0.004]
[1722357021137,0.90418229,66430.0,66429.0,0.004]
[1722357021332,0.92775491,66430.0,66429.0,0.004]
[1722357021546,1.68052395,66430.0,66429.0,0.004]
[1722357022525,1.89632395,66430.0,66429.0,0.004]
[1722357022729,1.90632395,66430.0,66429.0,0.004]
[1722357023438,2.22739195,66430.0,66429.0,0.004]
[1722357023635,1.05454429,66416.0,66415.0,0.000913]
[1722357023835,1.21611691,66416.0,66415.0,0.000913]
[1722357024999,1.21911691,66416.0,66415.0,0.001913]
[1722357025227,1.21611691,66416.0,66415.0,0.000913]
[1722357025639,1.19254429,66416.0,66415.0,0.000913]
[1722357027489,1.19554429,66416.0,66415.0,0.001913]
[1722357028006,1.19254429,66416.0,66415.0,0.000913]
[1722357028449,1.19554429,66416.0,66415.0,0.001913]
[1722357028631,1.19554429,66416.0,66415.0,0.000913]
[1722357028632,1.19254429,66416.0,66415.0,0.000913]
[1722357029034,1.19554429,66416.0,66415.0,0.000913]
[1722357029763,1.28181158,66416.0,66415.0,0.000913]
[1722357030121,1.34617733,66416.0,66415.0,0.000913]
[1722357030329,1.36975887,66416.0,66415.0,0.000913]
[1722357032247,1.21912583,66416.0,66415.0,0.000913]
[1722357032456,0.14158229,66416.0,66415.0,0.000913]
[1722357032676,0.00358229,66416.0,66415.0,0.753753]
[1722357032879,0.00358229,66416.0,66415.0,0.452617]
[1722357033238,0.00358229,66416.0,66415.0,0.151481]
[1722357033484,0.15414829,66416.0,66415.0,0.000913]
[1722357033832,0.89811229,66416.0,66415.0,0.000913]
[1722357034371,0.59698029,66416.0,66415.0,0.000913]
[1722357034769,0.14228229,66416.0,66415.0,0.151481]
[1722357034912,0.14228229,66416.0,66415.0,0.154481]
[1722357034913,0.00058229,66416.0,66415.0,0.154481]
[1722357035116,0.15114829,66416.0,66415.0,0.003913]
[1722357035325,0.00058229,66416.0,66415.0,0.003913]
[1722357035524,0.15114829,66416.0,66415.0,0.003913]
[1722357036557,1.19794429,66416.0,66415.0,0.003913]
[1722357036954,0.14398229,66416.0,66415.0,0.154481]
[1722357037163,0.00058229,66416.0,66415.0,0.154481]
[1722357037365,0.00058229,66416.0,66415.0,0.003913]
[1722357037977,0.15114829,66416.0,66415.0,0.003913]
[1722357038214,0.00058229,66416.0,66415.0,0.003913]
[1722357039405,0.00058229,66416.0,66415.0,0.154481]
[1722357039834,0.00058229,66416.0,66415.0,0.003913]
[1722357040936,0.00058229,66416.0,66415.0,0.154481]
[1722357041131,0.00058229,66416.0,66415.0,0.003913]
[1722357041547,0.15114829,66416.0,66415.0,0.003913]
[1722357041744,0.89491229,66416.0,66415.0,0.003913]
[1722357041940,1.19604429,66416.0,66415.0,0.003913]
[1722357042555,1.21962472,66416.0,66415.0,0.003913]
[1722357042797,1.19604429,66416.0,66415.0,0.003913]
[1722357043022,0.00058229,66416.0,66415.0,0.154481]
[1722357043434,0.00058229,66416.0,66415.0,0.455617]
[1722357044024,0.00058229,66416.0,66415.0,0.756753]
[1722357044661,0.00058229,66416.0,66415.0,0.602272]
[1722357044863,0.00058229,66416.0,66415.0,0.75284]
[1722357045292,0.000907,66418.0,66417.0,0.752817]
[1722357045293,0.00058229,66418.0,66417.0,0.752817]
[1722357045569,0.00058229,66428.0,66427.0,0.451623]
[1722357045801,0.00058229,66428.0,66427.0,0.752705]
[1722357046008,0.00058229,66428.0,66427.0,1.053787]
[1722357046538,0.00058229,66428.0,66427.0,0.752705]
[1722357046742,0.00458229,66428.0,66427.0,0.752705]
[1722357049388,0.00458229,66428.0,66427.0,0.150541]
[1722357049586,0.00458229,66428.0,66417.0,0.1199529]
[1722357049587,0.00058229,66418.0,66417.0,0.301127]
[1722357049796,0.00058229,66418.0,66417.0,0.87795714]
[1722357049997,0.00058229,66418.0,66417.0,0.45169]
[1722357050226,0.00058229,66418.0,66417.0,0.752817]
[1722357050441,0.00058229,66418.0,66417.0,0.45169]
[1722357051046,0.00058229,66418.0,66417.0,0.752817]
[1722357051203,0.00058229,66418.0,66417.0,0.45869]
[1722357051403,0.00058229,66418.0,66417.0,0.759817]
[1722357052039,0.00058229,66418.0,66417.0,0.45869]
[1722357053017,0.00058229,66418.0,66417.0,0.007]
[1722357053132,0.58966629,66418.0,66417.0,0.007]
[1722357053954,0.28854329,66418.0,66417.0,0.007]
[1722357054876,0.13798229,66418.0,66417.0,0.007]
[1722357055077,0.28854329,66418.0,66417.0,0.007]
[1722357055369,0.13798229,66418.0,66417.0,0.007]
[1722357055572,0.16155989,66418.0,66417.0,0.007]
[1722357055788,0.02415989,66418.0,66417.0,0.45869]
[1722357056026,0.00058229,66418.0,66417.0,0.45869]
[1722357057194,0.00058229,66418.0,66417.0,0.759817]
[1722357057759,0.00058229,66418.0,66417.0,0.45869]
[1722357057959,0.00058229,66418.0,66417.0,0.007]
[1722357058106,0.15114329,66418.0,66417.0,0.007]
[1722357058511,0.15114329,66418.0,66411.0,0.301154]
[1722357058512,0.00058229,66412.0,66411.0,0.301154]
[1722357058669,0.00058229,66412.0,66411.0,0.451731]
[1722357059253,0.00058229,66412.0,66411.0,0.150577]
[1722357059532,0.00058229,66410.0,66409.0,0.150581]
[1722357059861,0.00058229,66408.0,66407.0,0.03019]
[1722357060137,0.00058229,66408.0,66406.0,0.000913]
[1722357060138,0.00058229,66407.0,66406.0,0.000913]
[1722357060345,0.00058229,66407.0,66406.0,0.1521482]
[1722357060551,0.00058229,66407.0,66406.0,0.4533252]
[1722357060757,0.00058229,66407.0,66406.0,0.151501]
[1722357061954,0.00058229,66407.0,66406.0,0.452678]
[1722357062756,0.126695,66408.0,66407.0,0.150586]
[1722357063613,0.126695,66408.0,66407.0,0.151499]
[1722357063812,0.301133,66416.0,66408.0,0.301168]
[1722357064068,0.001,66412.0,66411.0,0.009]
[1722357064266,0.02457998,66412.0,66411.0,0.761885]
[1722357064494,0.001,66412.0,66411.0,0.761885]
[1722357064696,0.001,66412.0,66411.0,0.460731]
[1722357065494,0.151397,66416.0,66412.0,0.150573]
[1722357065694,0.151397,66416.0,66415.0,0.531704]
[1722357065695,0.00083,66416.0,66415.0,0.531704]
[1722357065859,0.00083,66416.0,66415.0,1.17402197]
[1722357066218,0.00083,66416.0,66415.0,1.47515797]
[1722357067371,0.00083,66416.0,66415.0,1.47613932]
[1722357067573,0.00083,66416.0,66415.0,1.47613959]
[1722357069006,0.00083,66416.0,66415.0,1.48519859]
[1722357069229,0.00083,66416.0,66415.0,1.78633459]
[1722357069386,0.00083,66416.0,66415.0,1.48519859]
[1722357069587,0.00083,66416.0,66415.0,1.78633459]
[1722357072558,0.00083,66416.0,66415.0,1.48519859]
[1722357073830,0.00083,66416.0,66415.0,1.47614705]
[1722357074198,0.00083,66416.0,66415.0,1.39614705]
[1722357074465,0.00083,66416.0,66415.0,0.87897801]
[1722357074664,0.14533,66416.0,66415.0,0.151568]
[1722357074879,0.14533,66416.0,66415.0,0.001]
[1722357075476,0.14533,66416.0,66415.0,0.151568]
[1722357075815,0.14533,66416.0,66415.0,0.452704]
[1722357076121,0.14533,66416.0,66415.0,0.001]
[1722357076376,0.14533,66416.0,66415.0,0.151568]
[1722357077488,0.14533,66416.0,66415.0,0.001]
[1722357077645,0.295896,66416.0,66415.0,0.001]
[1722357077848,0.1689081,66416.0,66415.0,0.001]
[1722357078078,0.3194741,66416.0,66415.0,0.001]
[1722357078742,0.1689081,66416.0,66415.0,0.001]
[1722357079140,0.1689081,66416.0,66415.0,0.151568]
[1722357079329,0.00083,66416.0,66415.0,0.452704]
[1722357080632,0.00083,66416.0,66415.0,1.47435469]
[1722357081035,0.00083,66416.0,66415.0,1.77549069]
[1722357081438,0.00083,66416.0,66415.0,1.47435469]
[1722357081665,0.00083,66416.0,66415.0,1.77549069]
[1722357081866,0.00083,66416.0,66415.0,1.47335469]
[1722357082098,0.00183,66416.0,66415.0,1.48135469]